[Event "Titled Tuesday Blitz August 16 Early 2022"]
[White "Karimov, Alisher"]
[Black "Harsh Suresh"]
[WhiteFideId "14700280"]
[BlackFideId "45018464"]
[WhiteElo "2186"]
[BlackElo "2070"]
[Result "1/2-1/2"]
[Round "04"]
[TimeControl "180+2"]
[Date "2022.08.18"]
[WhiteClock "0:00:00"]
[BlackClock "0:00:00"]

1. d4 {[%clk 0:00:00]}  g6 {[%clk 0:00:00]} 2. c4 {[%clk 0:00:00]}  Bg7 {[%clk 0:00:00]} 3. Nc3 {[%clk 0:00:00]}  d6 {[%clk 0:00:00]} 4. Nf3 {[%clk 0:00:00]}  c5 {[%clk 0:00:00]} 5. dxc5 {[%clk 0:00:00]}  dxc5 {[%clk 0:00:00]} 6. Qxd8+ {[%clk 0:00:00]}  Kxd8 {[%clk 0:00:00]} 7. Be3 {[%clk 0:00:00]}  Bxc3+ {[%clk 0:00:00]} 8. bxc3 {[%clk 0:00:00]}  b6 {[%clk 0:00:00]} 9. Bf4 {[%clk 0:00:00]}  f6 {[%clk 0:00:00]} 10. O-O-O+ {[%clk 0:00:00]}  Ke8 {[%clk 0:00:00]} 11. h4 {[%clk 0:00:00]}  Be6 {[%clk 0:00:00]} 12. e3 {[%clk 0:00:00]}  Nc6 {[%clk 0:00:00]} 13. Nd2 {[%clk 0:00:00]}  Rd8 {[%clk 0:00:00]} 14. f3 {[%clk 0:00:00]}  Bf7 {[%clk 0:00:00]} 15. g4 {[%clk 0:00:00]}  e5 {[%clk 0:00:00]} 16. Bg3 {[%clk 0:00:00]}  Nge7 {[%clk 0:00:00]} 17. Be2 {[%clk 0:00:00]}  Nc8 {[%clk 0:00:00]} 18. Ne4 {[%clk 0:00:00]}  Ke7 {[%clk 0:00:00]} 19. g5 {[%clk 0:00:00]}  f5 {[%clk 0:00:00]} 20. Nf6 {[%clk 0:00:00]}  Rxd1+ {[%clk 0:00:00]} 21. Rxd1 {[%clk 0:00:00]}  Rd8 {[%clk 0:00:00]} 22. Rxd8 {[%clk 0:00:00]}  Kxd8 {[%clk 0:00:00]} 23. Nxh7 {[%clk 0:00:00]}  Nd6 {[%clk 0:00:00]} 24. Nf6 {[%clk 0:00:00]}  Nxc4 {[%clk 0:00:00]} 25. Bf2 {[%clk 0:00:00]}  Nd6 {[%clk 0:00:00]} 26. Kb2 {[%clk 0:00:00]}  Ke7 {[%clk 0:00:00]} 27. Bg3 {[%clk 0:00:00]}  Bc4 {[%clk 0:00:00]} 28. Bd1 {[%clk 0:00:00]}  Bf7 {[%clk 0:00:00]} 29. Be2 {[%clk 0:00:00]}  Na5 {[%clk 0:00:00]} 30. e4 {[%clk 0:00:00]}  f4 {[%clk 0:00:00]} 31. Be1 {[%clk 0:00:00]}  Bc4 {[%clk 0:00:00]} 32. Bd1 {[%clk 0:00:00]}  Kf7 {[%clk 0:00:00]} 33. Nd7 {[%clk 0:00:00]}  Ke6 {[%clk 0:00:00]} 34. Nf8+ {[%clk 0:00:00]}  Kf7 {[%clk 0:00:00]} 35. Nd7 {[%clk 0:00:00]}  Be6 {[%clk 0:00:00]} 36. Nxe5+ {[%clk 0:00:00]}  Kg7 {[%clk 0:00:00]} 37. Nd3 {[%clk 0:00:00]}  Nac4+ {[%clk 0:00:00]} 38. Kc1 {[%clk 0:00:00]}  Ne3 {[%clk 0:00:00]} 39. Nxf4 {[%clk 0:00:00]}  Bxa2 {[%clk 0:00:00]} 40. Be2 {[%clk 0:00:00]}  Nec4 {[%clk 0:00:00]} 41. Ne6+ {[%clk 0:00:00]}  Kf7 {[%clk 0:00:00]} 42. Nd8+ {[%clk 0:00:00]}  Kg7 {[%clk 0:00:00]} 43. Bd3 {[%clk 0:00:00]}  Ne5 {[%clk 0:00:00]} 44. Be2 {[%clk 0:00:00]}  Bc4 {[%clk 0:00:00]} 45. Bxc4 {[%clk 0:00:00]}  Ndxc4 {[%clk 0:00:00]} 46. f4 {[%clk 0:00:00]}  Nd3+ {[%clk 0:00:00]} 47. Kd1 {[%clk 0:00:00]}  Nxf4 {[%clk 0:00:00]} 48. Bg3 {[%clk 0:00:00]}  Nd3 {[%clk 0:00:00]} 49. Nc6 {[%clk 0:00:00]}  a5 {[%clk 0:00:00]} 50. Ke2 {[%clk 0:00:00]}  Ndb2 {[%clk 0:00:00]} 51. Ne5 {[%clk 0:00:00]}  a4 {[%clk 0:00:00]} 52. Nd3 {[%clk 0:00:00]}  Nxd3 {[%clk 0:00:00]} 53. Kxd3 {[%clk 0:00:00]}  b5 {[%clk 0:00:00]} 54. Kc2 {[%clk 0:00:00]}  Kf7 {[%clk 0:00:00]} 55. Bf2 {[%clk 0:00:00]}  Nd6 {[%clk 0:00:00]} 56. Bxc5 {[%clk 0:00:00]}  Nxe4 {[%clk 0:00:00]} 57. Bb4 {[%clk 0:00:00]}  Ke6 {[%clk 0:00:00]} 58. Kd3 {[%clk 0:00:00]}  Ng3 {[%clk 0:00:00]} 59. Kd4 {[%clk 0:00:00]}  Nf5+ {[%clk 0:00:00]} 60. Kc5 {[%clk 0:00:00]}  Nxh4 {[%clk 0:00:00]} 61. Kxb5 {[%clk 0:00:00]}  Nf3 {[%clk 0:00:00]} 62. c4 {[%clk 0:00:00]}  Nxg5 {[%clk 0:00:00]} 63. Kxa4 {[%clk 0:00:00]}  Ne4 {[%clk 0:00:00]} 64. Be1 {[%clk 0:00:00]}  g5 {[%clk 0:00:00]} 65. Kb5 {[%clk 0:00:00]}  Kd6 {[%clk 0:00:00]} 66. Bb4+ {[%clk 0:00:00]}  Kd7 {[%clk 0:00:00]} 67. Be1 {[%clk 0:00:00]}  g4 {[%clk 0:00:00]} 68. c5 {[%clk 0:00:00]}  Ng5 {[%clk 0:00:00]} 69. c6+ {[%clk 0:00:00]}  Kc8 {[%clk 0:00:00]} 70. Bg3 {[%clk 0:00:00]}  Nf3 {[%clk 0:00:00]} 71. Kb6 {[%clk 0:00:00]}  Nd2 {[%clk 0:00:00]} 72. Bf4 {[%clk 0:00:00]}  Ne4 {[%clk 0:00:00]} 73. Be5 {[%clk 0:00:00]}  Nf2 {[%clk 0:00:00]} 74. Bg3 {[%clk 0:00:00]}  Nd3 {[%clk 0:00:00]} 75. Bh2 {[%clk 0:00:00]}  Nc1 {[%clk 0:00:00]} 76. Bg3 {[%clk 0:00:00]}  Ne2 {[%clk 0:00:00]} 77. Bh2 {[%clk 0:00:00]}  Nd4 {[%clk 0:00:00]} 78. Bg3 {[%clk 0:00:00]}  Ne6 {[%clk 0:00:00]} 79. Be5 {[%clk 0:00:00]}  Nf8 {[%clk 0:00:00]} 80. Kc5 {[%clk 0:00:00]}  Ng6 {[%clk 0:00:00]} 81. Bg3 {[%clk 0:00:00]}  Ne7 {[%clk 0:00:00]} 82. Bh2 {[%clk 0:00:00]}  Nf5 {[%clk 0:00:00]} 83. Kd5 {[%clk 0:00:00]}  Nh4 {[%clk 0:00:00]} 84. Ke4 {[%clk 0:00:00]}  Nf3 {[%clk 0:00:00]} 85. Bg3 {[%clk 0:00:00]}  Nd2+ {[%clk 0:00:00]} 86. Kf5 {[%clk 0:00:00]}  Nb3 {[%clk 0:00:00]} 87. Kxg4 {[%clk 0:00:00]}  Nd4 {[%clk 0:00:00]} 88. Bf4 {[%clk 0:00:00]}  Nxc6 {[%clk 0:00:00]} 1/2-1/2


[Site "https://www.chess.com"]

[Event "Titled Tuesday Blitz August 16 Early 2022"]
[White "Khabinets, Ivan"]
[Black "Terry, Renato"]
[WhiteFideId "14115980"]
[BlackFideId "3803457"]
[WhiteElo "2114"]
[BlackElo "2577"]
[Result "0-1"]
[Round "04"]
[TimeControl "180+1"]
[Date "2022.08.16"]
[WhiteClock "0:02:28"]
[BlackClock "0:02:26"]

1. e4 {[%clk 0:03:00]}  e6 {[%clk 0:02:59]} 2. d4 {[%clk 0:03:00]}  d5 {[%clk 0:02:59]} 3. Nd2 {[%clk 0:03:01]}  Be7 {[%clk 0:02:58]} 4. e5 {[%clk 0:02:59]}  c5 {[%clk 0:02:58]} 5. c3 {[%clk 0:03:00]}  cxd4 {[%clk 0:02:57]} 6. cxd4 {[%clk 0:03:00]}  Nc6 {[%clk 0:02:57]} 7. Ndf3 {[%clk 0:03:01]}  Bb4+ {[%clk 0:02:56]} 8. Bd2 {[%clk 0:03:01]}  Qb6 {[%clk 0:02:56]} 9. Bxb4 {[%clk 0:02:59]}  Qxb4+ {[%clk 0:02:56]} 10. Qd2 {[%clk 0:03:00]}  Bd7 {[%clk 0:02:56]} 11. Bd3 {[%clk 0:02:58]}  Nge7 {[%clk 0:02:49]} 12. Ne2 {[%clk 0:02:57]}  Rc8 {[%clk 0:02:49]} 13. Rc1 {[%clk 0:02:56]}  O-O {[%clk 0:02:38]} 14. O-O {[%clk 0:02:56]}  Qxd2 {[%clk 0:02:37]} 15. Nxd2 {[%clk 0:02:57]}  Nb4 {[%clk 0:02:35]} 16. Bb1 {[%clk 0:02:36]}  Bb5 {[%clk 0:02:34]} 17. Rce1 {[%clk 0:02:28]}  Nc2 {[%clk 0:02:26]} 0-1


[Site "https://www.chess.com"]

[Event "Titled Tuesday Blitz August 16 Early 2022"]
[White "Koniahli, Malek."]
[Black "Zia, Tahsin Tajwar"]
[WhiteFideId "7603495"]
[BlackFideId "10211888"]
[WhiteElo "2097"]
[BlackElo "1800"]
[Result "1-0"]
[Round "04"]
[TimeControl "180+2"]
[Date "2022.08.18"]
[WhiteClock "0:00:00"]
[BlackClock "0:00:00"]

1. e4 {[%clk 0:00:00]}  c6 {[%clk 0:00:00]} 2. Nf3 {[%clk 0:00:00]}  d5 {[%clk 0:00:00]} 3. Nc3 {[%clk 0:00:00]}  Bg4 {[%clk 0:00:00]} 4. h3 {[%clk 0:00:00]}  Bxf3 {[%clk 0:00:00]} 5. Qxf3 {[%clk 0:00:00]}  e6 {[%clk 0:00:00]} 6. Be2 {[%clk 0:00:00]}  Nd7 {[%clk 0:00:00]} 7. O-O {[%clk 0:00:00]}  Bc5 {[%clk 0:00:00]} 8. Rd1 {[%clk 0:00:00]}  d4 {[%clk 0:00:00]} 9. Nb1 {[%clk 0:00:00]}  Ne5 {[%clk 0:00:00]} 10. Qg3 {[%clk 0:00:00]}  d3 {[%clk 0:00:00]} 11. cxd3 {[%clk 0:00:00]}  Bd4 {[%clk 0:00:00]} 12. Nc3 {[%clk 0:00:00]}  h5 {[%clk 0:00:00]} 13. h4 {[%clk 0:00:00]}  Nf6 {[%clk 0:00:00]} 14. Rf1 {[%clk 0:00:00]}  Rh6 {[%clk 0:00:00]} 15. Kh1 {[%clk 0:00:00]}  Rg6 {[%clk 0:00:00]} 16. Qh3 {[%clk 0:00:00]}  Nfg4 {[%clk 0:00:00]} 17. Nd1 {[%clk 0:00:00]}  f5 {[%clk 0:00:00]} 18. f4 {[%clk 0:00:00]}  Nd7 {[%clk 0:00:00]} 19. Ne3 {[%clk 0:00:00]}  Qf6 {[%clk 0:00:00]} 20. e5 {[%clk 0:00:00]}  Qe7 {[%clk 0:00:00]} 21. a4 {[%clk 0:00:00]}  O-O-O {[%clk 0:00:00]} 22. a5 {[%clk 0:00:00]}  Nc5 {[%clk 0:00:00]} 23. Ra3 {[%clk 0:00:00]}  Na6 {[%clk 0:00:00]} 24. Ra4 {[%clk 0:00:00]}  Qc5 {[%clk 0:00:00]} 25. Rc4 {[%clk 0:00:00]}  Qxa5 {[%clk 0:00:00]} 26. Qf3 {[%clk 0:00:00]}  Nc5 {[%clk 0:00:00]} 27. b4 {[%clk 0:00:00]}  Qc7 {[%clk 0:00:00]} 28. bxc5 {[%clk 0:00:00]}  Qe7 {[%clk 0:00:00]} 29. Ba3 {[%clk 0:00:00]}  Qxh4+ {[%clk 0:00:00]} 30. Qh3 {[%clk 0:00:00]}  Nf2+ {[%clk 0:00:00]} 31. Rxf2 {[%clk 0:00:00]}  Qxf2 {[%clk 0:00:00]} 32. Qf3 {[%clk 0:00:00]}  Qe1+ {[%clk 0:00:00]} 33. Nf1 {[%clk 0:00:00]}  h4 {[%clk 0:00:00]} 34. Rc1 {[%clk 0:00:00]}  Qf2 {[%clk 0:00:00]} 35. Qxf2 {[%clk 0:00:00]}  Bxf2 {[%clk 0:00:00]} 36. Rc4 {[%clk 0:00:00]}  Bd4 {[%clk 0:00:00]} 37. Nh2 {[%clk 0:00:00]}  Rg3 {[%clk 0:00:00]} 38. Nf3 {[%clk 0:00:00]}  Rg4 {[%clk 0:00:00]} 39. Rxd4 {[%clk 0:00:00]}  Rxd4 {[%clk 0:00:00]} 40. Nxd4 {[%clk 0:00:00]}  Rxf4 {[%clk 0:00:00]} 41. Nf3 {[%clk 0:00:00]}  Ra4 {[%clk 0:00:00]} 42. Bb2 {[%clk 0:00:00]}  Ra2 {[%clk 0:00:00]} 43. Bc3 {[%clk 0:00:00]}  a5 {[%clk 0:00:00]} 44. Nd4 {[%clk 0:00:00]}  Kd7 {[%clk 0:00:00]} 45. Bh5 {[%clk 0:00:00]}  a4 {[%clk 0:00:00]} 46. Bf7 {[%clk 0:00:00]}  Ke7 {[%clk 0:00:00]} 47. Bxe6 {[%clk 0:00:00]}  Ra3 {[%clk 0:00:00]} 48. Bc4 {[%clk 0:00:00]}  g6 {[%clk 0:00:00]} 49. Kh2 {[%clk 0:00:00]}  Kd7 {[%clk 0:00:00]} 50. Kh3 {[%clk 0:00:00]}  Kc7 {[%clk 0:00:00]} 51. Kxh4 {[%clk 0:00:00]}  b5 {[%clk 0:00:00]} 52. cxb6+ {[%clk 0:00:00]}  Kxb6 {[%clk 0:00:00]} 53. e6 {[%clk 0:00:00]}  Kc7 {[%clk 0:00:00]} 54. Kg5 {[%clk 0:00:00]}  Kd6 {[%clk 0:00:00]} 55. Kxg6 {[%clk 0:00:00]}  c5 {[%clk 0:00:00]} 56. Nb5+ {[%clk 0:00:00]}  Ke7 {[%clk 0:00:00]} 57. Nxa3 {[%clk 0:00:00]}  Kf8 {[%clk 0:00:00]} 58. Bf6 {[%clk 0:00:00]}  f4 {[%clk 0:00:00]} 59. Bb5 {[%clk 0:00:00]}  Kg8 {[%clk 0:00:00]} 60. e7 {[%clk 0:00:00]}  f3 {[%clk 0:00:00]} 61. e8=Q# {[%clk 0:00:00]} 1-0


[Site "https://www.chess.com"]

[Event "Titled Tuesday Blitz August 16 Early 2022"]
[White "Kostiukov, Alexandr"]
[Black "Orlov, Georgi"]
[WhiteFideId "14108100"]
[BlackFideId "2011271"]
[WhiteElo "2202"]
[BlackElo "2461"]
[Result "0-1"]
[Round "04"]
[TimeControl "180+2"]
[Date "2022.08.18"]
[WhiteClock "0:00:00"]
[BlackClock "0:00:00"]

1. g3 {[%clk 0:00:00]}  f5 {[%clk 0:00:00]} 2. Bg2 {[%clk 0:00:00]}  e5 {[%clk 0:00:00]} 3. d4 {[%clk 0:00:00]}  e4 {[%clk 0:00:00]} 4. c4 {[%clk 0:00:00]}  Nf6 {[%clk 0:00:00]} 5. Nc3 {[%clk 0:00:00]}  Bb4 {[%clk 0:00:00]} 6. Qb3 {[%clk 0:00:00]}  Qe7 {[%clk 0:00:00]} 7. Nh3 {[%clk 0:00:00]}  Nc6 {[%clk 0:00:00]} 8. Be3 {[%clk 0:00:00]}  Na5 {[%clk 0:00:00]} 9. Qc2 {[%clk 0:00:00]}  Nxc4 {[%clk 0:00:00]} 10. Bg5 {[%clk 0:00:00]}  c6 {[%clk 0:00:00]} 11. O-O {[%clk 0:00:00]}  d5 {[%clk 0:00:00]} 12. Bxf6 {[%clk 0:00:00]}  Qxf6 {[%clk 0:00:00]} 13. Nxd5 {[%clk 0:00:00]}  cxd5 {[%clk 0:00:00]} 14. Qa4+ {[%clk 0:00:00]}  Bd7 {[%clk 0:00:00]} 15. Qxb4 {[%clk 0:00:00]}  Qb6 {[%clk 0:00:00]} 16. Qxb6 {[%clk 0:00:00]}  axb6 {[%clk 0:00:00]} 17. Nf4 {[%clk 0:00:00]}  Bc6 {[%clk 0:00:00]} 18. b3 {[%clk 0:00:00]}  Na3 {[%clk 0:00:00]} 19. Rfc1 {[%clk 0:00:00]}  Ke7 {[%clk 0:00:00]} 20. e3 {[%clk 0:00:00]}  Rhc8 {[%clk 0:00:00]} 21. h4 {[%clk 0:00:00]}  g6 {[%clk 0:00:00]} 22. Bf1 {[%clk 0:00:00]}  Kd6 {[%clk 0:00:00]} 23. Be2 {[%clk 0:00:00]}  b5 {[%clk 0:00:00]} 24. Kf1 {[%clk 0:00:00]}  b4 {[%clk 0:00:00]} 25. Ke1 {[%clk 0:00:00]}  Be8 {[%clk 0:00:00]} 26. Kd2 {[%clk 0:00:00]}  h6 {[%clk 0:00:00]} 27. Rxc8 {[%clk 0:00:00]}  Rxc8 {[%clk 0:00:00]} 28. Rc1 {[%clk 0:00:00]}  Ra8 {[%clk 0:00:00]} 29. Rc5 {[%clk 0:00:00]}  Nb1+ {[%clk 0:00:00]} 30. Kc2 {[%clk 0:00:00]}  Nc3 {[%clk 0:00:00]} 0-1


[Site "https://www.chess.com"]

[Event "Titled Tuesday Blitz August 16 Early 2022"]
[White "Lakshmi C"]
[Black "Demin, Vladimir"]
[WhiteFideId "25035347"]
[BlackFideId "4167457"]
[WhiteElo "1775"]
[BlackElo "2430"]
[Result "0-1"]
[Round "04"]
[TimeControl "180+2"]
[Date "2022.08.18"]
[WhiteClock "0:00:00"]
[BlackClock "0:00:00"]

1. e4 {[%clk 0:00:00]}  Nf6 {[%clk 0:00:00]} 2. e5 {[%clk 0:00:00]}  Nd5 {[%clk 0:00:00]} 3. d4 {[%clk 0:00:00]}  d6 {[%clk 0:00:00]} 4. c4 {[%clk 0:00:00]}  Nb6 {[%clk 0:00:00]} 5. f4 {[%clk 0:00:00]}  dxe5 {[%clk 0:00:00]} 6. fxe5 {[%clk 0:00:00]}  Bf5 {[%clk 0:00:00]} 7. Be3 {[%clk 0:00:00]}  e6 {[%clk 0:00:00]} 8. a3 {[%clk 0:00:00]}  c5 {[%clk 0:00:00]} 9. Nf3 {[%clk 0:00:00]}  Nc6 {[%clk 0:00:00]} 10. Nc3 {[%clk 0:00:00]}  cxd4 {[%clk 0:00:00]} 11. Bxd4 {[%clk 0:00:00]}  Nxd4 {[%clk 0:00:00]} 12. Nxd4 {[%clk 0:00:00]}  Bc5 {[%clk 0:00:00]} 13. Nxf5 {[%clk 0:00:00]}  exf5 {[%clk 0:00:00]} 14. Qf3 {[%clk 0:00:00]}  O-O {[%clk 0:00:00]} 15. Bd3 {[%clk 0:00:00]}  Nxc4 {[%clk 0:00:00]} 16. O-O-O {[%clk 0:00:00]}  Nxe5 {[%clk 0:00:00]} 17. Qxf5 {[%clk 0:00:00]}  Nxd3+ {[%clk 0:00:00]} 18. Rxd3 {[%clk 0:00:00]}  Qb6 {[%clk 0:00:00]} 19. Rh3 {[%clk 0:00:00]}  g6 {[%clk 0:00:00]} 20. Qg5 {[%clk 0:00:00]}  Qc7 {[%clk 0:00:00]} 21. Qh6 {[%clk 0:00:00]}  f6 {[%clk 0:00:00]} 22. Nd5 {[%clk 0:00:00]}  Qg7 {[%clk 0:00:00]} 23. Qd2 {[%clk 0:00:00]}  Rac8 {[%clk 0:00:00]} 24. Rd3 {[%clk 0:00:00]}  Be3+ {[%clk 0:00:00]} 25. Kb1 {[%clk 0:00:00]}  Bxd2 {[%clk 0:00:00]} 0-1


[Site "https://www.chess.com"]

[Event "Titled Tuesday Blitz August 16 Early 2022"]
[White "Lebedev, Artem S."]
[Black "Legenia, Artem"]
[WhiteFideId "34272747"]
[BlackFideId "14136945"]
[WhiteElo "1699"]
[BlackElo "1936"]
[Result "1-0"]
[Round "04"]
[TimeControl "180+2"]
[Date "2022.08.18"]
[WhiteClock "0:00:00"]
[BlackClock "0:00:00"]

1. e4 {[%clk 0:00:00]}  Nf6 {[%clk 0:00:00]} 2. e5 {[%clk 0:00:00]}  Nd5 {[%clk 0:00:00]} 3. d4 {[%clk 0:00:00]}  d6 {[%clk 0:00:00]} 4. c4 {[%clk 0:00:00]}  Nb6 {[%clk 0:00:00]} 5. f4 {[%clk 0:00:00]}  dxe5 {[%clk 0:00:00]} 6. fxe5 {[%clk 0:00:00]}  Nc6 {[%clk 0:00:00]} 7. Be3 {[%clk 0:00:00]}  Bf5 {[%clk 0:00:00]} 8. Nc3 {[%clk 0:00:00]}  e6 {[%clk 0:00:00]} 9. Nf3 {[%clk 0:00:00]}  Bb4 {[%clk 0:00:00]} 10. Be2 {[%clk 0:00:00]}  Qd7 {[%clk 0:00:00]} 11. O-O {[%clk 0:00:00]}  O-O-O {[%clk 0:00:00]} 12. d5 {[%clk 0:00:00]}  exd5 {[%clk 0:00:00]} 13. Bxb6 {[%clk 0:00:00]}  axb6 {[%clk 0:00:00]} 14. cxd5 {[%clk 0:00:00]}  Ne7 {[%clk 0:00:00]} 15. Nd4 {[%clk 0:00:00]}  Bxc3 {[%clk 0:00:00]} 16. bxc3 {[%clk 0:00:00]}  Kb8 {[%clk 0:00:00]} 17. d6 {[%clk 0:00:00]}  cxd6 {[%clk 0:00:00]} 18. exd6 {[%clk 0:00:00]}  Qxd6 {[%clk 0:00:00]} 19. Qa4 {[%clk 0:00:00]}  Bd7 {[%clk 0:00:00]} 20. Bb5 {[%clk 0:00:00]}  Bxb5 {[%clk 0:00:00]} 21. Nxb5 {[%clk 0:00:00]}  Qc5+ {[%clk 0:00:00]} 22. Kh1 {[%clk 0:00:00]}  Nc8 {[%clk 0:00:00]} 23. Rxf7 {[%clk 0:00:00]}  Rd5 {[%clk 0:00:00]} 24. Qf4+ {[%clk 0:00:00]}  Nd6 {[%clk 0:00:00]} 25. Nxd6 {[%clk 0:00:00]}  Qxd6 {[%clk 0:00:00]} 26. Qxd6+ {[%clk 0:00:00]}  Rxd6 {[%clk 0:00:00]} 27. Rxg7 {[%clk 0:00:00]}  Rd3 {[%clk 0:00:00]} 28. Rg3 {[%clk 0:00:00]}  Rhd8 {[%clk 0:00:00]} 29. Rxd3 {[%clk 0:00:00]}  Rxd3 {[%clk 0:00:00]} 30. Rc1 {[%clk 0:00:00]}  Rd2 {[%clk 0:00:00]} 31. h3 {[%clk 0:00:00]}  Rxa2 {[%clk 0:00:00]} 32. Kh2 {[%clk 0:00:00]}  Kc7 {[%clk 0:00:00]} 33. Kg3 {[%clk 0:00:00]}  Kd6 {[%clk 0:00:00]} 34. Kf3 {[%clk 0:00:00]}  Ke6 {[%clk 0:00:00]} 35. g4 {[%clk 0:00:00]}  Rd2 {[%clk 0:00:00]} 36. Kg3 {[%clk 0:00:00]}  Rd3+ {[%clk 0:00:00]} 37. Kh4 {[%clk 0:00:00]}  Kd5 {[%clk 0:00:00]} 38. g5 {[%clk 0:00:00]}  b5 {[%clk 0:00:00]} 39. Kg4 {[%clk 0:00:00]}  Kc4 {[%clk 0:00:00]} 40. h4 {[%clk 0:00:00]}  Rxc3 {[%clk 0:00:00]} 41. Re1 {[%clk 0:00:00]}  Rc2 {[%clk 0:00:00]} 42. Kh5 {[%clk 0:00:00]}  b4 {[%clk 0:00:00]} 43. Kh6 {[%clk 0:00:00]}  b3 {[%clk 0:00:00]} 44. Kxh7 {[%clk 0:00:00]}  b2 {[%clk 0:00:00]} 45. Rb1 {[%clk 0:00:00]}  Kc3 {[%clk 0:00:00]} 46. h5 {[%clk 0:00:00]}  b5 {[%clk 0:00:00]} 47. g6 {[%clk 0:00:00]}  Rg2 {[%clk 0:00:00]} 48. g7 {[%clk 0:00:00]}  b4 {[%clk 0:00:00]} 49. g8=Q {[%clk 0:00:00]}  Rxg8 {[%clk 0:00:00]} 50. Kxg8 {[%clk 0:00:00]}  b3 {[%clk 0:00:00]} 51. h6 {[%clk 0:00:00]}  Kc2 {[%clk 0:00:00]} 52. Rxb2+ {[%clk 0:00:00]}  Kxb2 {[%clk 0:00:00]} 53. h7 {[%clk 0:00:00]}  Kc2 {[%clk 0:00:00]} 54. h8=Q {[%clk 0:00:00]}  b2 {[%clk 0:00:00]} 55. Qh2+ {[%clk 0:00:00]}  Kc1 {[%clk 0:00:00]} 56. Qg1+ {[%clk 0:00:00]}  Kc2 {[%clk 0:00:00]} 57. Qg6+ {[%clk 0:00:00]}  Kc1 {[%clk 0:00:00]} 58. Qc6+ {[%clk 0:00:00]}  Kd1 {[%clk 0:00:00]} 59. Qd5+ {[%clk 0:00:00]}  Kc1 {[%clk 0:00:00]} 60. Qc4+ {[%clk 0:00:00]}  Kd1 {[%clk 0:00:00]} 61. Qd3+ {[%clk 0:00:00]}  Kc1 {[%clk 0:00:00]} 62. Qc3+ {[%clk 0:00:00]}  Kb1 {[%clk 0:00:00]} 63. Kf7 {[%clk 0:00:00]}  Ka2 {[%clk 0:00:00]} 64. Qa5+ {[%clk 0:00:00]}  Kb1 {[%clk 0:00:00]} 65. Ke6 {[%clk 0:00:00]}  Kc2 {[%clk 0:00:00]} 66. Qc5+ {[%clk 0:00:00]}  Kd2 {[%clk 0:00:00]} 67. Qd4+ {[%clk 0:00:00]}  Kc2 {[%clk 0:00:00]} 68. Qc4+ {[%clk 0:00:00]}  Kd2 {[%clk 0:00:00]} 69. Qb4+ {[%clk 0:00:00]}  Kc2 {[%clk 0:00:00]} 70. Qe4+ {[%clk 0:00:00]}  Kd2 {[%clk 0:00:00]} 71. Qb1 {[%clk 0:00:00]} 1-0


[Site "https://www.chess.com"]

[Event "Titled Tuesday Blitz August 16 Early 2022"]
[White "Leiva, Gianmarco"]
[Black "Veiga, Jose Francisco R P Neves"]
[WhiteFideId "3804399"]
[BlackFideId "1930087"]
[WhiteElo "2323"]
[BlackElo "2273"]
[Result "0-1"]
[Round "04"]
[TimeControl "180+2"]
[Date "2022.08.18"]
[WhiteClock "0:00:00"]
[BlackClock "0:00:00"]

1. e4 {[%clk 0:00:00]}  e5 {[%clk 0:00:00]} 2. Nf3 {[%clk 0:00:00]}  Nc6 {[%clk 0:00:00]} 3. Bc4 {[%clk 0:00:00]}  Nf6 {[%clk 0:00:00]} 4. d3 {[%clk 0:00:00]}  Be7 {[%clk 0:00:00]} 5. O-O {[%clk 0:00:00]}  O-O {[%clk 0:00:00]} 6. a4 {[%clk 0:00:00]}  d5 {[%clk 0:00:00]} 7. exd5 {[%clk 0:00:00]}  Nxd5 {[%clk 0:00:00]} 8. a5 {[%clk 0:00:00]}  a6 {[%clk 0:00:00]} 9. Re1 {[%clk 0:00:00]}  Bg4 {[%clk 0:00:00]} 10. c3 {[%clk 0:00:00]}  Nf4 {[%clk 0:00:00]} 11. d4 {[%clk 0:00:00]}  Ng6 {[%clk 0:00:00]} 12. d5 {[%clk 0:00:00]}  Nb8 {[%clk 0:00:00]} 13. h3 {[%clk 0:00:00]}  Bxf3 {[%clk 0:00:00]} 14. Qxf3 {[%clk 0:00:00]}  Bd6 {[%clk 0:00:00]} 15. Bd3 {[%clk 0:00:00]}  Nd7 {[%clk 0:00:00]} 16. Nd2 {[%clk 0:00:00]}  Nc5 {[%clk 0:00:00]} 17. Bc2 {[%clk 0:00:00]}  f5 {[%clk 0:00:00]} 18. b4 {[%clk 0:00:00]}  e4 {[%clk 0:00:00]} 19. Qe2 {[%clk 0:00:00]}  Nf4 {[%clk 0:00:00]} 20. Qf1 {[%clk 0:00:00]}  Ncd3 {[%clk 0:00:00]} 21. Nc4 {[%clk 0:00:00]}  Nxe1 {[%clk 0:00:00]} 22. Qxe1 {[%clk 0:00:00]}  Nxd5 {[%clk 0:00:00]} 23. Bb3 {[%clk 0:00:00]}  Kh8 {[%clk 0:00:00]} 24. Nxd6 {[%clk 0:00:00]}  Qxd6 {[%clk 0:00:00]} 25. Ba3 {[%clk 0:00:00]}  Nf4 {[%clk 0:00:00]} 26. b5 {[%clk 0:00:00]}  Qg6 {[%clk 0:00:00]} 27. g3 {[%clk 0:00:00]}  Rfe8 {[%clk 0:00:00]} 28. Qe3 {[%clk 0:00:00]}  Nxh3+ {[%clk 0:00:00]} 29. Kh2 {[%clk 0:00:00]}  Ng5 {[%clk 0:00:00]} 30. b6 {[%clk 0:00:00]}  cxb6 {[%clk 0:00:00]} 31. axb6 {[%clk 0:00:00]}  Rad8 {[%clk 0:00:00]} 32. Bc4 {[%clk 0:00:00]}  Qh5+ {[%clk 0:00:00]} 33. Kg2 {[%clk 0:00:00]}  Qf3+ {[%clk 0:00:00]} 34. Qxf3 {[%clk 0:00:00]}  exf3+ {[%clk 0:00:00]} 35. Kf1 {[%clk 0:00:00]}  Ne4 {[%clk 0:00:00]} 36. Bb4 {[%clk 0:00:00]}  Nd2+ {[%clk 0:00:00]} 0-1


[Site "https://www.chess.com"]